bitfinex/quotes_BTCUSD_20250213
["timestamp","ask_amount","ask_price","bid_price","bid_amount"]
[1739466300961,0.156708,95720.0,95710.0,0.10250365]
[1739466301170,0.394833,95719.0,95710.0,0.10250365]
[1739466301379,0.156715,95715.0,95710.0,0.10250365]
[1739466301587,0.00508811,95719.0,95710.0,0.10250365]
[1739466301793,0.156717,95714.0,95711.0,0.0711056]
[1739466301996,0.156717,95714.0,95712.0,0.10250365]
[1739466302211,1.103336,95713.0,95712.0,0.10250365]
[1739466302426,0.78986311,95713.0,95712.0,0.10250365]
[1739466302638,0.156746,95696.0,95695.0,0.5352]
[1739466302848,0.156746,95696.0,95695.0,0.10250365]
[1739466303262,0.99258783,95696.0,95695.0,0.10250365]
[1739466303718,0.97671583,95696.0,95695.0,0.10250365]
[1739466304783,0.71922383,95696.0,95695.0,0.10250365]
[1739466304994,0.25342955,95696.0,95695.0,0.08004815]
[1739466305202,0.01394555,95696.0,95695.0,0.08404815]
[1739466305618,0.00890272,95696.0,95695.0,0.08404815]
[1739466305832,0.00890272,95696.0,95695.0,0.24079615]
[1739466306046,0.00890272,95696.0,95695.0,0.26379615]
[1739466306260,0.00890272,95696.0,95695.0,0.25979615]
[1739466306620,0.00890272,95696.0,95695.0,0.30769615]
[1739466307252,0.00890272,95696.0,95695.0,0.30869615]
[1739466307772,0.00890272,95696.0,95695.0,0.84389615]
[1739466307923,0.00890272,95696.0,95695.0,0.84289615]
[1739466308126,0.14721124,95730.0,95719.0,0.156707]
[1739466308335,0.23473,95729.0,95720.0,0.11817435]
[1739466308572,0.12480043,95729.0,95720.0,0.11817435]
[1739466308765,0.103479,95728.0,95720.0,0.11817435]
[1739466309224,0.0001064,95737.0,95720.0,0.11817435]
[1739466309445,0.00499243,95727.0,95720.0,0.11817435]
[1739466309652,0.14549,95726.0,95721.0,0.01181744]
[1739466309861,0.30002,95729.0,95722.0,0.10250365]
[1739466310072,0.00499243,95725.0,95722.0,0.10250365]
[1739466310237,0.14721124,95730.0,95722.0,0.10250365]
[1739466310442,0.00499243,95724.0,95722.0,0.10250365]
[1739466310644,0.14721124,95730.0,95723.0,0.03232661]
[1739466310858,0.122275,95729.0,95724.0,0.10250365]
[1739466311054,0.14721124,95730.0,95724.0,0.10250365]
[1739466311256,0.10112,95729.0,95724.0,0.10250365]
[1739466312251,0.156698,95725.0,95724.0,0.10250365]
[1739466312430,0.156697,95726.0,95724.0,0.10250365]
[1739466312642,0.208925,95728.0,95711.0,0.5352]
[1739466312846,0.156709,95719.0,95712.0,0.10250365]
[1739466313036,0.14721124,95721.0,95712.0,0.10250365]
[1739466313253,0.156718,95713.0,95712.0,0.10250365]
[1739466313455,0.987647,95713.0,95712.0,0.10250365]
[1739466313576,1.322581,95713.0,95712.0,0.01025037]
[1739466313779,0.20896,95712.0,95711.0,0.001]
[1739466313980,0.413324,95712.0,95711.0,0.001]
[1739466314228,0.156721,95711.0,95698.0,0.156743]
[1739466314440,0.156725,95709.0,95699.0,0.10250365]
[1739466314755,0.188516,95708.0,95699.0,0.10250365]
[1739466314972,0.555913,95709.0,95700.0,0.0321749]
[1739466315180,0.555913,95709.0,95701.0,0.10250365]
[1739466315382,0.190924,95709.0,95701.0,0.10250365]
[1739466315585,0.143432,95708.0,95701.0,0.10250365]
[1739466315780,0.170967,95709.0,95701.0,0.10250365]
[1739466316008,0.247884,95709.0,95702.0,0.03016709]
[1739466316189,0.247884,95709.0,95703.0,0.10250365]
[1739466316404,0.208971,95707.0,95703.0,0.10250365]
[1739466316612,0.537761,95706.0,95703.0,0.10250365]
[1739466316744,0.448988,95705.0,95703.0,0.10250365]
[1739466316946,0.14721124,95710.0,95704.0,0.01025037]
[1739466316947,0.156728,95707.0,95704.0,0.01025037]
[1739466317170,0.156725,95709.0,95705.0,0.10250365]
[1739466317368,0.14721124,95710.0,95704.0,0.01025037]
[1739466317569,0.156733,95704.0,95695.0,0.5352]
[1739466317770,0.14721124,95710.0,95703.0,0.001]
[1739466318051,0.198398,95709.0,95703.0,0.001]
[1739466318476,0.355123,95709.0,95703.0,0.001]
[1739466318734,0.401546,95708.0,95704.0,0.0157741]
[1739466318872,0.1973,95707.0,95703.0,0.001]
[1739466319084,0.156728,95707.0,95696.0,0.25924965]
[1739466319288,0.159414,95706.0,95696.0,0.25924965]
[1739466319487,0.159414,95706.0,95696.0,0.10250365]
[1739466320048,0.156731,95705.0,95704.0,0.001]
[1739466320253,0.602006,95705.0,95696.0,0.10250365]
[1739466320465,0.379831,95704.0,95697.0,0.10034567]
[1739466320673,0.38492259,95704.0,95698.0,0.10250365]
[1739466320990,0.156741,95699.0,95698.0,0.10250365]
[1739466321168,0.771669,95699.0,95698.0,0.10250365]
[1739466321367,1.681037,95699.0,95698.0,0.10250365]
[1739466321602,1.66650159,95699.0,95698.0,0.12288858]
[1739466321807,1.49416559,95699.0,95698.0,0.12288858]
[1739466322011,1.44983859,95699.0,95698.0,0.12288858]
[1739466322471,1.41309359,95699.0,95698.0,0.12288858]
[1739466322672,1.38990359,95699.0,95698.0,0.12288858]
[1739466323169,0.20899,95698.0,95684.0,0.3238]
[1739466323375,0.209001,95693.0,95685.0,0.10250365]
[1739466323578,0.156762,95686.0,95685.0,0.10250365]
[1739466323985,0.16167521,95686.0,95685.0,0.10250365]
[1739466324201,0.74539021,95686.0,95685.0,0.11275402]
[1739466324349,0.74539021,95686.0,95685.0,0.10250365]
[1739466324763,0.68685421,95686.0,95685.0,0.10250365]
[1739466325612,0.68685421,95686.0,95685.0,0.002]
[1739466325769,0.53009221,95686.0,95675.0,0.3238]
[1739466325976,0.209029,95681.0,95676.0,0.13490602]
[1739466326361,0.156777,95677.0,95676.0,0.13490602]
[1739466326740,0.156777,95677.0,95676.0,0.10250365]
[1739466326914,0.16169021,95677.0,95676.0,0.10250365]
[1739466328606,0.156782,95674.0,95662.0,0.3238]
[1739466328807,0.156782,95674.0,95673.0,0.1027273]
[1739466329011,0.16164094,95674.0,95673.0,0.1027273]
[1739466329426,0.16164094,95674.0,95673.0,0.11300003]
[1739466329848,0.00485894,95674.0,95673.0,0.11300003]
[1739466330297,0.16164094,95674.0,95673.0,0.11300003]
[1739466330515,0.44044394,95674.0,95673.0,0.00022365]
[1739466331943,0.13753437,95674.0,95673.0,0.00022365]
[1739466332142,0.00873137,95674.0,95673.0,0.1027273]
[1739466332459,0.156772,95681.0,95673.0,0.1027273]
[1739466332660,0.156768,95683.0,95674.0,0.12845568]
[1739466332868,0.208992,95698.0,95674.0,0.12845568]
[1739466333064,0.208992,95698.0,95675.0,0.15678]
[1739466333065,0.15676,95688.0,95675.0,0.15678]
[1739466333295,0.105049,95684.0,95676.0,0.10250365]
[1739466333495,0.15,95698.0,95680.0,0.156772]
[1739466333726,0.15,95698.0,95681.0,0.16340642]
[1739466333949,0.116585,95684.0,95681.0,0.16340642]
[1739466334170,0.400932,95683.0,95681.0,0.16340642]
[1739466334347,0.172649,95682.0,95681.0,0.16340642]
[1739466334549,0.188536,95688.0,95681.0,0.16340642]
[1739466334754,0.14721124,95691.0,95682.0,0.01634064]
[1739466334755,0.15,95690.0,95682.0,0.01634064]
[1739466334956,0.14721124,95691.0,95683.0,0.10250365]
[1739466335224,0.361389,95690.0,95683.0,0.10250365]
[1739466335353,0.771315,95689.0,95683.0,0.10250365]
[1739466335553,0.771315,95689.0,95682.0,0.01634064]
[1739466335554,0.156767,95683.0,95682.0,0.01634064]
[1739466335786,0.156769,95682.0,95681.0,0.06090277]
[1739466336155,0.16544045,95682.0,95681.0,0.06090277]
[1739466336777,0.00867145,95682.0,95681.0,0.06090277]
[1739466337124,0.156769,95682.0,95681.0,0.06290277]
[1739466337318,0.00867145,95682.0,95681.0,0.06290277]
[1739466337577,0.156767,95683.0,95681.0,0.06290277]
[1739466337788,0.156769,95683.0,95682.0,0.00629028]
[1739466338013,0.156769,95682.0,95681.0,0.002]
[1739466338218,1.031157,95682.0,95681.0,0.002]
[1739466338424,0.15678,95675.0,95674.0,0.3238]
[1739466338639,1.124178,95676.0,95674.0,0.10250365]
[1739466338853,1.187331,95676.0,95675.0,0.10250365]
[1739466339058,1.187331,95676.0,95673.0,0.00022365]
[1739466339059,0.156782,95674.0,95673.0,0.00022365]
[1739466339262,1.752943,95674.0,95673.0,0.00022365]
[1739466339465,1.733326,95674.0,95673.0,0.00022365]
[1739466339673,1.639475,95674.0,95673.0,0.00022365]
[1739466339884,1.610607,95674.0,95673.0,0.00022365]
[1739466340430,1.610607,95674.0,95673.0,0.00122365]
[1739466341039,1.610607,95674.0,95673.0,0.00022365]
[1739466341247,1.610607,95674.0,95673.0,0.00222365]
[1739466341501,1.610607,95674.0,95673.0,0.00022365]
[1739466342464,1.3342,95674.0,95673.0,0.00022365]
[1739466342725,0.747992,95674.0,95673.0,0.00022365]
[1739466342922,0.35623324,95684.0,95673.0,0.1027273]
[1739466342923,0.156776,95678.0,95673.0,0.1027273]
[1739466343146,0.327642,95677.0,95674.0,0.12090638]
[1739466343362,0.226714,95676.0,95674.0,0.12090638]
[1739466343588,0.114218,95675.0,95674.0,0.12090638]
[1739466343808,0.15,95683.0,95674.0,0.12090638]
[1739466344043,0.14721124,95690.0,95675.0,0.020243]
[1739466344263,0.156759,95688.0,95676.0,0.25928165]
[1739466344491,0.222727,95687.0,95676.0,0.25928165]
[1739466344709,0.156762,95687.0,95676.0,0.10250365]
[1739466344927,0.540737,95686.0,95676.0,0.10250365]
[1739466345136,0.209012,95688.0,95677.0,0.01715703]
[1739466345393,0.156774,95679.0,95678.0,0.10250365]
[1739466345609,0.558732,95679.0,95678.0,0.10250365]
[1739466347625,0.558732,95679.0,95678.0,0.10350365]
[1739466348467,0.558732,95679.0,95678.0,0.001]
[1739466350807,0.56737236,95679.0,95678.0,0.001]
[1739466351024,0.71737236,95679.0,95678.0,0.001]
[1739466353163,0.71737236,95679.0,95678.0,0.00122344]
[1739466355473,0.71737236,95679.0,95678.0,0.00022344]
[1739466357474,0.15,95678.0,95657.0,0.08339458]
[1739466357648,0.15,95678.0,95658.0,0.12353784]
[1739466357649,0.14721124,95670.0,95658.0,0.12353784]
[1739466357848,0.01745831,95679.0,95659.0,0.023]
[1739466357849,0.15,95677.0,95659.0,0.023]
[1739466358214,0.01745831,95679.0,95662.0,0.0781]
[1739466358368,0.14721124,95680.0,95669.0,0.15679]
[1739466358568,0.14721124,95680.0,95670.0,0.14933892]
[1739466358754,0.002,95678.0,95670.0,0.14933892]
[1739466358963,0.134681,95677.0,95670.0,0.25929065]
[1739466359157,0.1432637,95677.0,95670.0,0.10250365]
[1739466359362,0.0085827,95677.0,95670.0,0.10250365]
[1739466359609,0.0085827,95677.0,95676.0,0.156779]
[1739466359811,0.001,95679.0,95676.0,0.10250365]
[1739466359967,0.001,95679.0,95677.0,0.12510402]
[1739466360367,0.0085827,95678.0,95677.0,0.28188102]
[1739466360593,0.0085827,95678.0,95677.0,0.30488102]
[1739466360815,0.0001064,95695.0,95694.0,0.156749]
[1739466361022,0.0001064,95695.0,95694.0,0.38495265]
[1739466361222,0.0001064,95695.0,95694.0,0.46524872]
[1739466362082,0.0011064,95695.0,95694.0,0.46724872]
[1739466362424,0.0001064,95695.0,95694.0,0.46724872]
[1739466362794,0.0001064,95695.0,95694.0,0.31149972]
[1739466363029,0.0001064,95695.0,95694.0,0.46824872]
[1739466363849,0.0001064,95695.0,95694.0,0.49124872]
[1739466366971,0.0001064,95695.0,95694.0,1.34724872]
[1739466367245,0.0001064,95695.0,95694.0,1.35424872]
[1739466367466,0.0001064,95695.0,95694.0,1.35524872]
[1739466368471,0.0001064,95695.0,95694.0,1.34724872]
[1739466368700,0.0001064,95695.0,95694.0,1.35424872]
[1739466368935,0.0001064,95695.0,95694.0,1.36124872]
[1739466369171,0.0001064,95695.0,95694.0,1.35424872]
[1739466369894,0.0001064,95695.0,95694.0,1.36124872]
[1739466370101,0.0001064,95695.0,95694.0,1.37235176]
[1739466371679,0.0001064,95695.0,95694.0,1.36535176]
[1739466371920,0.0001064,95695.0,95694.0,1.37235176]
[1739466372164,0.0001064,95737.0,95708.0,0.308726]
[1739466372435,0.0001064,95737.0,95708.0,1.30110225]
[1739466373644,0.0001064,95737.0,95708.0,1.30810225]
[1739466373876,0.0001064,95737.0,95708.0,1.31510225]
[1739466375028,0.0001064,95737.0,95708.0,1.28510225]
[1739466375243,0.0001064,95737.0,95708.0,1.30810225]
[1739466375443,0.0001064,95737.0,95708.0,1.30110225]
[1739466375648,0.0001064,95737.0,95708.0,1.30810225]
[1739466375875,0.0001064,95737.0,95708.0,1.31510225]
[1739466376131,0.0001064,95737.0,95708.0,1.30810225]
[1739466376372,0.0001064,95737.0,95708.0,1.15837625]
[1739466376625,0.0001064,95737.0,95736.0,0.28218365]
[1739466376860,0.0001064,95737.0,95736.0,0.81738365]
[1739466378150,0.0001064,95737.0,95736.0,0.81838365]
[1739466378598,0.0001064,95737.0,95736.0,0.81738365]
[1739466378845,0.0001064,95737.0,95736.0,0.9228873]
[1739466379069,0.0001064,95737.0,95736.0,1.0031873]
[1739466379272,0.0001064,95737.0,95736.0,1.0508873]
[1739466380920,0.0001064,95737.0,95736.0,1.0548873]
[1739466381505,0.14721124,95760.0,95752.0,0.156653]
[1739466381731,0.14721124,95760.0,95753.0,0.11816895]
[1739466381936,0.67324601,95759.0,95753.0,0.11816895]
[1739466382109,0.723027,95758.0,95753.0,0.11816895]
[1739466382312,0.01016801,95758.0,95753.0,0.11816895]
[1739466382509,0.201978,95757.0,95753.0,0.11816895]
[1739466382707,0.14721124,95760.0,95754.0,0.0118169]
[1739466382917,0.156636,95763.0,95755.0,0.10250365]
[1739466383110,0.20208301,95762.0,95755.0,0.10250365]
[1739466383318,0.176399,95761.0,95755.0,0.10250365]
[1739466383858,0.01016801,95760.0,95755.0,0.10250365]
[1739466384052,0.01016801,95760.0,95756.0,0.04798476]
[1739466384251,0.260561,95759.0,95757.0,0.10250365]
[1739466384435,0.01016801,95759.0,95757.0,0.10250365]
[1739466384879,0.156633,95765.0,95757.0,0.10250365]
[1739466385126,0.356889,95764.0,95757.0,0.10250365]
[1739466385337,0.36705701,95764.0,95758.0,0.156643]
[1739466385538,0.356888,95763.0,95759.0,0.17157331]
[1739466385738,0.01016801,95764.0,95760.0,0.15664]
[1739466385941,0.13512,95763.0,95760.0,0.10250365]
[1739466386190,0.156639,95761.0,95760.0,0.10250365]
[1739466386401,0.661453,95761.0,95760.0,0.10250365]
[1739466386604,0.828752,95761.0,95760.0,0.10250365]
[1739466386807,0.661196,95761.0,95760.0,0.10250365]
[1739466387013,0.67136401,95761.0,95760.0,0.15078751]
[1739466387224,0.01016801,95761.0,95760.0,0.15078751]
[1739466387432,0.01016801,95761.0,95760.0,0.25914465]
[1739466387643,0.156612,95778.0,95768.0,0.156628]
[1739466387846,0.208826,95774.0,95768.0,0.10250365]
[1739466388062,0.746138,95773.0,95768.0,0.10250365]
[1739466388272,0.01055649,95769.0,95768.0,0.10250365]
[1739466388448,0.36323749,95769.0,95768.0,0.10250365]
[1739466388692,0.51986349,95769.0,95768.0,0.12841782]
[1739466388898,0.16718249,95769.0,95768.0,0.12841782]
[1739466389112,0.36846749,95769.0,95768.0,0.13041782]
[1739466389314,0.35790749,95769.0,95768.0,0.10450365]
[1739466389493,0.35790749,95769.0,95768.0,0.10550365]
[1739466389934,0.51453349,95769.0,95768.0,0.003]
[1739466390767,0.51453349,95769.0,95768.0,0.002]
[1739466390974,0.156639,95762.0,95753.0,0.156652]
[1739466391175,0.378442,95761.0,95754.0,0.14676695]
[1739466391457,0.01021205,95761.0,95754.0,0.14676695]
[1739466392171,0.01021205,95761.0,95754.0,0.10250365]
[1739466392307,0.16685205,95761.0,95754.0,0.10250365]
[1739466392522,0.01021205,95761.0,95754.0,0.10250365]
[1739466392768,0.14721124,95770.0,95759.0,0.156643]
[1739466392980,0.15,95772.0,95766.0,0.15663]
[1739466393177,0.01021205,95768.0,95767.0,0.12841702]
[1739466393555,0.01021205,95768.0,95767.0,0.28504702]
[1739466393959,0.2088,95785.0,95767.0,0.20421702]
[1739466393960,0.306606,95782.0,95767.0,0.20421702]
[1739466394202,0.156625,95770.0,95767.0,0.12841702]
[1739466394361,0.0102102,95768.0,95767.0,0.02591337]
[1739466394556,0.0102102,95768.0,95766.0,0.001]
[1739466394793,0.0102102,95768.0,95766.0,0.10350365]
[1739466394950,0.156626,95770.0,95767.0,0.002]
[1739466395146,0.867944,95768.0,95766.0,0.001]
[1739466395363,0.15663,95767.0,95766.0,0.001]
[1739466395569,0.71604,95767.0,95747.0,0.023]
[1739466395765,0.156637,95763.0,95749.0,0.023]
[1739466395972,0.187263,95762.0,95750.0,0.10250365]
[1739466396188,0.156638,95762.0,95751.0,0.156656]
[1739466396394,0.344077,95761.0,95752.0,0.10250365]
[1739466396601,0.156653,95753.0,95752.0,0.10250365]
[1739466396808,0.15,95760.0,95731.0,0.076]
[1739466397014,0.14721124,95751.0,95742.0,0.10250365]
[1739466397218,0.158003,95750.0,95742.0,0.10250365]
[1739466397430,0.158003,95750.0,95743.0,0.10250365]
[1739466397431,0.156664,95746.0,95743.0,0.10250365]
[1739466397633,0.14721124,95751.0,95731.0,0.076]
[1739466397837,0.156661,95748.0,95747.0,0.001]
[1739466398050,0.156661,95748.0,95737.0,0.10250365]
[1739466398051,0.208877,95750.0,95737.0,0.10250365]
[1739466398256,0.517019,95749.0,95737.0,0.10250365]
[1739466398457,0.156677,95738.0,95737.0,0.10250365]
[1739466399262,0.208911,95735.0,95714.0,0.0807]
[1739466399479,0.15668,95736.0,95724.0,0.1567]
[1739466399651,0.044,95748.0,95715.0,0.12373547]
[1739466399652,0.156664,95746.0,95725.0,0.10250365]
[1739466399860,0.15,95749.0,95737.0,0.004]
[1739466400066,0.15,95747.0,95737.0,0.26318165]
[1739466400242,0.125674,95746.0,95738.0,0.02631816]
[1739466400446,0.125674,95746.0,95739.0,0.10250365]
[1739466400689,0.15,95747.0,95739.0,0.10250365]
[1739466400840,0.116187,95746.0,95739.0,0.10250365]
[1739466401246,0.156664,95746.0,95739.0,0.10250365]
[1739466401494,0.138802,95745.0,95740.0,0.02591887]
[1739466401696,0.14721124,95750.0,95740.0,0.02591887]
[1739466401697,0.0001065,95761.0,95741.0,0.10250365]
[1739466401901,0.184081,95759.0,95746.0,0.0765]
[1739466402041,0.139856,95758.0,95750.0,0.156657]
[1739466402235,0.0001065,95761.0,95751.0,0.15695872]
[1739466402236,0.15,95759.0,95751.0,0.15695872]
[1739466402438,0.0001065,95761.0,95751.0,0.10250365]
[1739466402642,0.0001065,95761.0,95753.0,0.156652]
[1739466402872,0.0001065,95761.0,95754.0,0.10250365]
[1739466403274,0.2089595,95761.0,95754.0,0.10250365]
[1739466403579,0.156641,95760.0,95754.0,0.10250365]
[1739466403779,0.001,95758.0,95755.0,0.02591647]
[1739466404005,0.001,95758.0,95730.0,0.076]
[1739466404006,0.15,95756.0,95730.0,0.076]
[1739466404342,0.15,95756.0,95740.0,0.13042252]
[1739466404343,0.14721124,95750.0,95740.0,0.13042252]
[1739466404639,0.208883,95748.0,95740.0,0.12842252]
[1739466404867,0.15667,95743.0,95740.0,0.12842252]
[1739466405052,0.14721124,95750.0,95741.0,0.06636225]
[1739466405265,0.15578759,95742.0,95741.0,0.06636225]
[1739466405878,0.311381,95742.0,95741.0,0.06636225]
[1739466406161,0.15,95753.0,95741.0,0.1688659]
[1739466406387,0.15,95751.0,95742.0,0.10250365]
[1739466406593,0.136208,95750.0,95743.0,0.05643568]
[1739466406811,0.15,95751.0,95744.0,0.25916965]
[1739466407025,0.15,95751.0,95744.0,0.10250365]
[1739466407465,0.15,95753.0,95744.0,0.34196965]
[1739466407686,0.0004,95769.0,95744.0,0.18530365]
[1739466407896,0.0004,95769.0,95747.0,0.0496]
[1739466408103,0.285166,95760.0,95752.0,0.156653]
[1739466408312,0.285166,95760.0,95753.0,0.10250365]
[1739466408526,0.0004,95769.0,95760.0,0.156641]
[1739466408737,0.0004,95769.0,95760.0,0.28505911]
[1739466408944,0.209237,95769.0,95760.0,0.12841811]
[1739466409159,0.2808815,95761.0,95760.0,0.10250365]
[1739466409371,0.4570785,95761.0,95760.0,0.10250365]
[1739466409544,0.3004395,95761.0,95760.0,0.10250365]
[1739466409966,0.2493735,95761.0,95760.0,0.10250365]
[1739466410166,0.1817885,95761.0,95760.0,0.10250365]
[1739466410375,0.3384275,95761.0,95760.0,0.11275402]
[1739466410948,0.34858895,95761.0,95760.0,0.01025037]
[1739466411192,0.34858895,95761.0,95760.0,0.001]
[1739466411193,0.55744195,95761.0,95760.0,0.001]
[1739466411601,0.55844195,95761.0,95760.0,0.001]
[1739466411776,0.156656,95751.0,95740.0,0.156674]
[1739466411980,0.01019036,95750.0,95745.0,0.10250365]
[1739466412749,0.156664,95746.0,95745.0,0.10250365]
[1739466412958,0.156664,95746.0,95745.0,0.11275402]
[1739466413161,0.16685436,95746.0,95745.0,0.01025037]
[1739466413371,0.16685436,95746.0,95735.0,0.5352]
[1739466413372,0.14739036,95746.0,95735.0,0.5352]
[1739466413579,0.14739036,95746.0,95727.0,0.0826]
[1739466413580,0.76320124,95745.0,95736.0,0.10250365]
[1739466413784,0.156675,95740.0,95736.0,0.10250365]
[1739466414036,0.156679,95737.0,95736.0,0.10250365]
[1739466414219,0.01019036,95739.0,95736.0,0.10250365]
[1739466414425,0.156679,95737.0,95736.0,0.10250365]
[1739466415018,0.156687,95732.0,95724.0,0.0486]
[1739466415216,0.16686936,95737.0,95736.0,0.001]
[1739466415463,0.156679,95737.0,95736.0,0.001]
[1739466415743,0.156687,95732.0,95731.0,0.42630365]
[1739466416520,0.16687736,95732.0,95731.0,0.42630365]
[1739466416746,0.69738936,95732.0,95731.0,0.42630365]
[1739466417503,0.01019036,95732.0,95731.0,0.42630365]
[1739466417715,0.01019036,95732.0,95731.0,0.47379401]
[1739466417936,0.00883393,95737.0,95731.0,0.47879401]
[1739466418140,0.15,95759.0,95732.0,0.10250365]
[1739466418338,0.15,95759.0,95735.0,0.156682]
[1739466418339,0.01012474,95736.0,95735.0,0.156682]
[1739466418538,0.15,95759.0,95736.0,0.1641392]
[1739466418747,0.156647,95757.0,95746.0,0.156663]
[1739466418949,0.247782,95756.0,95747.0,0.10250365]
[1739466419174,0.01005159,95755.0,95747.0,0.10250365]
[1739466419352,0.1567465,95761.0,95750.0,0.202756]
[1739466419577,0.19280759,95760.0,95751.0,0.10250365]
[1739466419790,0.00883895,95755.0,95751.0,0.10250365]
[1739466419997,0.221164,95754.0,95751.0,0.10250365]
[1739466420207,0.01005159,95753.0,95752.0,0.05151507]
[1739466420429,0.01005159,95753.0,95752.0,0.15401872]
[1739466420634,0.01005159,95753.0,95752.0,0.10250365]
[1739466420886,0.00883895,95755.0,95752.0,0.10250365]
[1739466421012,0.159251,95754.0,95753.0,0.10250365]
[1739466421311,0.01005159,95754.0,95753.0,0.10250365]
[1739466421716,0.30785324,95760.0,95753.0,0.10250365]
[1739466421717,0.206869,95757.0,95753.0,0.10250365]
[1739466421945,0.105035,95759.0,95754.0,0.05141427]
[1739466422168,0.0001065,95761.0,95755.0,0.10250365]
[1739466422385,0.37523,95760.0,95755.0,0.10250365]
[1739466422614,0.00884436,95756.0,95755.0,0.10250365]
[1739466422857,0.21812136,95756.0,95755.0,0.10250365]
[1739466423516,0.15622136,95756.0,95755.0,0.10250365]
[1739466423733,0.15622136,95756.0,95755.0,0.13302982]
[1739466423993,0.31286936,95756.0,95755.0,0.13302982]
[1739466424201,0.31286936,95756.0,95755.0,0.10250365]
[1739466424632,0.31486936,95756.0,95755.0,0.10250365]
[1739466424859,0.15822136,95756.0,95755.0,0.10250365]
[1739466425107,0.31486936,95756.0,95755.0,0.10250365]
[1739466425295,0.31497586,95756.0,95755.0,0.10250365]
[1739466425685,0.31497586,95756.0,95755.0,0.11736402]
[1739466425888,0.32502745,95756.0,95755.0,0.11736402]
[1739466427557,0.02100245,95756.0,95755.0,0.11736402]
[1739466427976,0.01095086,95756.0,95755.0,0.11736402]
[1739466428178,0.02100245,95756.0,95755.0,0.19606402]
[1739466428307,0.01095086,95756.0,95755.0,0.19606402]
[1739466428512,0.02100245,95756.0,95755.0,0.37571302]
[1739466428712,0.01095086,95756.0,95755.0,0.37571302]
[1739466429568,0.01095086,95756.0,95755.0,0.91091302]
[1739466429738,0.0001065,95761.0,95760.0,0.156641]
[1739466429939,0.0001065,95761.0,95760.0,0.4633483]
[1739466430575,0.0001065,95761.0,95760.0,1.1485483]
[1739466431029,0.0001065,95776.0,95768.0,0.459128]
[1739466431242,0.0001065,95776.0,95768.0,1.09683165]
[1739466431395,0.0001065,95776.0,95775.0,0.436117]
[1739466431584,0.0001065,95776.0,95775.0,1.1993243]
[1739466433691,0.0001065,95776.0,95775.0,1.2123243]
[1739466433925,0.0001065,95776.0,95775.0,1.2063243]
[1739466434273,0.0001065,95776.0,95775.0,1.2133243]
[1739466434478,0.0001065,95776.0,95775.0,1.2063243]
[1739466434681,0.0001065,95776.0,95775.0,1.1993243]
[1739466434883,0.0001065,95776.0,95775.0,1.2063243]
[1739466435085,0.0001065,95776.0,95775.0,1.2133243]
[1739466437067,5e-07,95776.0,95775.0,1.2133243]
[1739466438738,0.0001135,95809.0,95779.0,0.0754]
[1739466438944,0.0001135,95809.0,95794.0,0.10250365]
[1739466439123,0.0001135,95809.0,95795.0,0.023]
[1739466439124,0.156571,95803.0,95795.0,0.023]
[1739466439349,0.2088625,95809.0,95796.0,0.10250365]
[1739466439350,0.156581,95797.0,95796.0,0.10250365]
[1739466439560,0.00834369,95802.0,95796.0,0.10250365]
[1739466439758,0.0001135,95809.0,95796.0,0.10250365]
[1739466439895,0.0001135,95809.0,95797.0,0.06377036]
[1739466439896,0.156578,95799.0,95797.0,0.06377036]
[1739466440095,0.156578,95799.0,95798.0,0.10250365]
[1739466440301,0.208762,95803.0,95798.0,0.10250365]
[1739466440823,0.16491669,95802.0,95798.0,0.10250365]
[1739466441460,0.00834369,95802.0,95798.0,0.10250365]
[1739466441682,0.00834369,95802.0,95799.0,0.2267244]
[1739466441887,0.0001135,95809.0,95800.0,0.25907965]
[1739466442097,0.0001135,95809.0,95800.0,0.10250365]
[1739466442310,0.001,95802.0,95801.0,0.36534]
[1739466442517,0.001,95802.0,95801.0,0.6418473]
[1739466442954,0.001,95802.0,95801.0,0.5933473]
[1739466443358,0.0001135,95809.0,95801.0,0.2280073]
[1739466443571,0.0001135,95809.0,95808.0,0.156563]
[1739466443779,0.0001135,95809.0,95808.0,0.25906665]
[1739466444020,0.0001135,95809.0,95808.0,0.33927468]
[1739466444244,0.0001135,95809.0,95808.0,0.18271168]
[1739466444458,0.0001135,95809.0,95808.0,0.25906665]
[1739466444659,0.0095368,95809.0,95808.0,0.25906665]
[1739466444862,0.0011135,95809.0,95808.0,0.25906665]
[1739466445065,4.928e-05,95809.0,95808.0,0.25906665]
[1739466445510,0.00104928,95809.0,95808.0,0.10250365]
[1739466445724,0.85678209,95809.0,95801.0,0.10250365]
[1739466445935,0.00938031,95809.0,95802.0,0.10250365]
[1739466446140,0.00938031,95809.0,95808.0,0.156563]
[1739466446357,0.00095709,95809.0,95808.0,0.25906665]
[1739466446581,0.00095709,95809.0,95808.0,0.28206665]
[1739466446787,0.00877202,95813.0,95812.0,0.156556]
[1739466446996,0.00877202,95813.0,95812.0,0.28205965]
[1739466447214,0.00877202,95813.0,95812.0,0.25705965]
[1739466447430,7e-05,95832.0,95813.0,0.179554]
[1739466447640,7e-05,95832.0,95813.0,0.28205765]
[1739466447852,7e-05,95832.0,95813.0,0.3845613]
[1739466449607,0.156594,95832.0,95813.0,0.3845613]
[1739466449809,7e-05,95832.0,95813.0,0.3845613]
[1739466450016,7e-05,95832.0,95813.0,0.3615613]
[1739466450220,0.156535,95825.0,95813.0,0.3625613]
[1739466450427,0.156544,95820.0,95813.0,0.2060073]
[1739466450627,7e-05,95832.0,95813.0,0.10350365]
[1739466450628,0.02268957,95814.0,95813.0,0.10350365]
[1739466450838,0.0142356,95814.0,95813.0,0.10350365]
[1739466451455,0.02268957,95814.0,95813.0,0.10350365]
[1739466451666,0.0142356,95814.0,95813.0,0.10350365]
[1739466451920,0.0142356,95814.0,95813.0,0.26005765]
[1739466452129,0.02268042,95814.0,95813.0,0.3625613]
[1739466452335,0.02268042,95814.0,95813.0,0.2060073]
[1739466452535,0.0142356,95814.0,95813.0,0.2060073]
[1739466454315,0.553775,95814.0,95813.0,0.10350365]
[1739466454525,1.49446799,95814.0,95813.0,0.001]
[1739466454727,1.51801699,95814.0,95813.0,0.001]
[1739466454862,0.84414099,95814.0,95813.0,0.001]
[1739466455313,0.83201999,95814.0,95813.0,0.001]
[1739466456162,0.91071999,95814.0,95813.0,0.001]
[1739466456361,0.156584,95796.0,95793.0,0.5352]
[1739466456540,0.156584,95796.0,95794.0,0.06185946]
[1739466456809,0.00842969,95795.0,95794.0,0.06185946]
[1739466457160,0.17380009,95795.0,95794.0,0.06185946]